Cogmind - Beta 17 @@@ ROGUE MODE // 2026.06.23 @ 21:30:30 Player: chebyrekser Result: Destroyed by Improved Concussive RPG Performance ------------- Evolutions (9) 4500 Regions Visited (20) 4000 Robots Destroyed (313) 1565 Value Destroyed (14578) 14578 Prototype IDs (75) 1500 Alien Tech Used (3) 600 Bonus (13643) 13643 TOTAL SCORE: 40386 Bonus ------- High Alert Combat Kills 1555 Follower Combat Kills 287 Prayed to X0-1V1 5000 Major X0-1V1 Interference 5950 Network Hubs Disabled 400 Registered with UFD 300 Met Zhirov 300 Met R17 at Cetus 500 Friendly Fire -649 Cogmind --------- Core Integrity 0/1850 Matter 300/300 Energy 99/100 System Corruption 24% Temperature Cool (0) Movement Core (50) Location -1/Command Parts ------- > --- POWER (2) -------- (None) > --- PROPULSION (8) --- (None) > --- UTILITY (12) ----- Self-contained Transmogrifier > --- WEAPON (4) ------- (None) > --- INVENTORY (5) ---- Thermal Barrier EMDS Core Cannon Peak State ------------ > --- POWER ------------ Antimatter Reactor Compact Particle Reactor > --- PROPULSION ------- Experimental Biometal Heavy Treads Advanced Myomer Leg Biometal Leg Improved Thunder Leg Enhanced Biometal Leg Centrium Leg High-density Centrium Leg > --- UTILITY ---------- Improved Cryofiber Web High-capacity Storage Unit Advanced Terrain Scan Processor Advanced Terrain Scan Processor Core Analyzer Quantum Capacitor Improved Weapon Cycler Phase Shifter Layered Medium Armor Plating Self-contained Transmogrifier X0-1V1's Piety Tracker > --- WEAPON ----------- Proton Burst Cannon Core Cannon Enhanced Gamma Bomb Array > --- INVENTORY -------- Graviton Reactor Heavy Treads Advanced Heavy Treads Advanced Heavy Siege Treads Advanced Heat Sink Advanced Energy Well Advanced Phase Shifter Thermal Barrier Experimental EM Shield EMDS Nova Cannon Advanced KE Penetrator Heavy Shock Bomb Launcher Gamma Bomb Array [Rating: 218] Favorites ----------- Power Graviton Reactor Engine Ion Engine Power Core Meta Core Reactor Graviton Reactor Propulsion Light Treads Treads Light Treads Leg Flexi-carbon Leg Wheel Armored Wheel Flight Unit VTOL Module Utility X0-1V1's Piety Tracker Device X0-1V1's Piety Tracker Storage Huge Storage Unit Processor Core Analyzer Hackware Advanced Hacking Suite Protection Powered Armor Weapon Heavy Proton Cannon Energy Gun Particle Gun Energy Cannon Heavy Proton Cannon Ballistic Gun Barrage Gun Ballistic Cannon Slug Cannon Launcher Point Singularity Launcher Special Weapon Mining Laser Impact Weapon Shock Maul Slashing Weapon Scimitar of Distortion Special Melee Weapon Dirty Datajack Build | -11 -10 -10 -8 -6 -6 -6 -6 -6 -5 -4 -4 -4 -4 -3 -3 -3 -2 -2 -1 -1 ------- Run | Yrd Mat Sub Scr Fac Ext Cet Arc Hub Fac Fac Upp Upp Zhi Pro Res Tes Res Qua Acc Com Slots Evolved 17 | . . . . 8 . . . . 2 2 . . . . 2 . 1 . 2 . Power 1 | . . . . . . . . . . 1 . . . . . . . . . . Propulsion 6 | . . . . 4 . . . . 1 . . . . . . . . . 1 . Utility 8 | . . . . 3 . . . . . 1 . . . . 2 . 1 . 1 . Weapon 2 | . . . . 1 . . . . 1 . . . . . . . . . . . Parts Attached 233 | 8 7 30 10 17 12 7 6 19 26 19 4 1 4 2 3 8 34 5 7 4 Power 22 | 1 . 4 1 1 1 . 1 2 2 1 . . 1 . . 2 3 1 . 1 Engine 8 | 1 . 4 1 1 1 . . . . . . . . . . . . . . . Core 2 | . . . . . . . 1 . . . . . . . . 1 . . . . Reactor 12 | . . . . . . . . 2 2 1 . . 1 . . 1 3 1 . 1 Propulsion 61 | 2 2 12 2 2 3 2 . 3 7 6 2 . 1 . 2 1 7 3 2 2 Treads 21 | 2 2 7 . 2 1 . . 2 . . 1 . . . . . 1 1 . 2 Leg 31 | . . . . . . 2 . 1 7 6 1 . 1 . 2 1 6 2 2 . Wheel 9 | . . 5 2 . 2 . . . . . . . . . . . . . . . Hover . | . . . . . . . . . . . . . . . . . . . . . Flight . | . . . . . . . . . . . . . . . . . . . . . Utility 94 | 2 2 6 5 10 4 4 2 9 8 10 2 1 2 1 1 5 15 . 4 1 Device 56 | 1 1 4 2 8 3 . 2 6 7 8 . 1 . 1 1 1 9 . 1 . Storage 11 | 1 1 2 1 . . . . . 1 . . . 1 . . 1 2 . . 1 Processor 4 | . . . 1 . . . . 1 . 1 . . . . . . 1 . . . Hackware 5 | . . . . 1 1 . . 1 . . 1 . . . . 1 . . . . Protection 18 | . . . 1 1 . 4 . 1 . 1 1 . 1 . . 2 3 . 3 . Artifact . | . . . . . . . . . . . . . . . . . . . . . Weapon 56 | 3 3 8 2 4 4 1 3 5 9 2 . . . 1 . . 9 1 1 . Energy Gun 13 | 2 1 2 . . . 1 . . 5 . . . . . . . 2 . . . Energy Cannon 9 | . . 1 . 1 . . . . 1 1 . . . . . . 3 1 1 . Ballistic Gun 15 | 1 . 2 1 1 1 . 3 3 2 . . . . . . . 1 . . . Ballistic Cannon 6 | . . 2 . 1 . . . 2 . . . . . . . . 1 . . . Launcher 6 | . 1 1 . . 1 . . . 1 1 . . . . . . 1 . . . Special Weapon 2 | . 1 . . . . . . . . . . . . . . . 1 . . . Impact Weapon . | . . . . . . . . . . . . . . . . . . . . . Slashing Weapon 3 | . . . . . 2 . . . . . . . . 1 . . . . . . Piercing Weapon . | . . . . . . . . . . . . . . . . . . . . . Special Melee Weapon 2 | . . . 1 1 . . . . . . . . . . . . . . . . Unidentified Prototypes 30 | . . 1 1 2 . 1 1 5 6 . 1 . 3 . 1 1 5 . 2 . Corrupted Parts 13 | . . . . . . . 1 5 2 . . . . . . . 2 . 2 1 System Corruption 99 | . . . . . . . 10 49 14 . . . . . . . 19 . 4 3 Parts Lost 59 | . . 9 . . 3 1 1 12 7 1 1 . . . . . 15 . 1 8 Power 7 | . . 3 . . . . . 2 1 . . . . . . . . . . 1 Propulsion 13 | . . 3 . . 1 . . . . 1 1 . . . . . 3 . . 4 Utility 25 | . . 2 . . 2 1 1 6 3 . . . . . . . 8 . 1 1 Weapon 14 | . . 1 . . . . . 4 3 . . . . . . . 4 . . 2 Highest Loss Streak 8 | . . 2 . . 3 1 1 3 5 1 1 . . . . . 3 . 1 8 To Critical Strikes 3 | . . . . . . . . . . . 1 . . . . . 1 . . 1 Average Backups 15 | 4 17 10 9 9 18 18 19 17 19 20 20 22 21 21 20 20 18 16 15 8 Power . | . 1 . . . 1 1 1 1 . . 1 2 1 2 2 2 2 1 1 . Propulsion 3 | 1 4 3 3 1 2 4 5 4 4 4 4 4 3 4 2 2 3 3 3 1 Utility 4 | 1 6 2 . 2 5 4 4 4 4 7 7 8 8 8 8 8 6 5 5 2 Weapon 5 | 1 4 3 2 3 7 6 7 5 8 7 6 6 6 5 5 6 6 6 6 3 Tool/Special . | . . . . . . . . . . . . . . . . . . . . . Unused Backups 64 | . 7 7 2 3 4 4 . 1 8 4 2 1 3 1 . 2 9 2 . 4 Power 1 | . . . . . . 1 . . . . . . . . . . . . . . Propulsion 13 | . 4 . . 1 1 1 . . . 1 . . 2 . . . 2 1 . . Utility 17 | . 3 5 . 1 1 1 . . . 1 2 1 . 1 . . . . . 1 Weapon 31 | . . 2 1 1 2 1 . 1 7 2 . . 1 . . 2 7 1 . 3 Tool/Special 2 | . . . 1 . . . . . 1 . . . . . . . . . . . Average Slot Usage (%) 91 | . 98 99 97 89 91 80 81 74 82 89 90 87 94 90 89 87 88 90 87 52 Engine 5 | . 14 11 10 5 6 6 2 . . . . . . . . . . . . . Reactor 2 | . . . . . . . . 2 4 10 10 9 7 10 9 7 5 8 7 3 Treads 7 | . 28 14 . 6 4 . . 7 . . . . . . . . 1 4 3 3 Leg 10 | . . . . . . 5 6 3 26 33 26 22 30 30 27 27 22 20 23 10 Wheel 6 | . . 9 12 20 26 12 13 5 . . . . . . . . . . . . Device 22 | . 13 24 18 21 26 24 24 22 23 21 23 21 19 22 26 22 24 28 23 14 Storage 8 | . 14 12 12 6 6 6 6 6 6 5 5 5 5 5 4 4 7 4 3 2 Processor 1 | . . . 8 2 1 1 . 3 1 . . . . . . . 3 4 3 9 Protection 4 | . . . 7 4 6 10 12 7 . 4 9 12 15 12 9 10 4 4 4 1 Energy Gun 4 | . 13 5 . 5 5 3 1 . 3 3 . . . . 4 . 1 . . . Energy Cannon 6 | . . 6 7 4 1 . . . 10 10 13 15 14 10 9 10 7 13 10 3 Ballistic Gun 4 | . 9 3 12 7 1 . 9 10 . . . . . . . . 1 . . . Ballistic Cannon 1 | . . 6 . . . . . 1 . . . . . . . . . . . . Launcher 1 | . . . 3 . 1 1 . . 1 . 1 . . . . . 2 . 2 1 Peak Build Rating 218 | 8 11 51 63 102 91 112 118 132 152 165 156 155 157 161 177 191 201 201 218 210 Average Rating 95 | 5 9 42 53 87 79 103 114 116 135 157 152 153 153 151 175 176 185 198 210 115 On Entrance 118 | . 8 11 47 63 77 91 112 113 110 135 159 155 151 157 161 177 179 190 199 201 Avg Prop Armor Cover (%) 10 | . . 13 . 6 4 12 11 13 13 . . . . . . . 7 6 5 24 Naked Turns . | . . . . . . . . . . . . . . . . . . . . . Heaviest Build 181 | 15 51 106 105 152 152 126 126 126 143 174 171 177 178 170 168 177 181 142 152 123 Greatest Support 183 | 40 40 43 16 50 80 80 40 160 154 173 168 148 153 153 166 183 183 148 178 178 Greatest Overweight (x) 10 | . 1 10 10 3 3 3 3 10 1 1 1 1 1 1 1 1 1 . . . Average Overweight (x) 2 | . . 6 8 2 1 2 2 2 . . . 1 1 1 1 . . . . . Largest Inventory Capacity 25 | 8 20 25 25 25 25 25 25 25 25 25 25 25 25 25 25 25 25 20 20 20 Average Capacity 23 | 7 19 24 25 24 25 25 25 25 25 25 25 25 25 25 25 23 22 20 20 13 Most Carried 25 | 8 20 25 25 25 25 25 25 25 25 25 25 25 25 25 25 25 25 20 20 20 Average Carried 22 | 4 17 24 24 21 21 24 25 22 23 24 24 24 24 24 22 22 21 19 19 11 Final Capacity 25 | 8 20 25 25 25 25 25 25 25 25 25 25 25 25 25 25 20 20 20 20 5 Final Carried 25 | 8 20 25 25 17 25 25 25 25 25 25 25 25 25 25 25 20 20 20 20 5 Transmogrified Parts 122 | . . . 6 10 9 . 5 . 18 5 10 9 1 7 4 6 21 3 8 . Integrity Recovered 2187 | . . . 59 93 167 . 70 . 384 45 221 121 24 57 7 153 372 18 396 . Class Distribution -------------------- 46% | Mutant 21% | Tank 15% | Scavenger-Mutant 5% | Gunner 4% | Scavenger-Tank 3% | Scavenger-Gunner Dominant Class ---------------- Mutant | -10/Materials Mutant | -10/Subcaves Mutant | -8/Scraptown Tank | -6/Factory Mutant | -6/Extension Mutant | -6/Cetus Scavenger-Mutant | -6/Archives Scavenger-Mutant | -6/Hub_04(d) Scavenger-Gunner | -5/Factory Gunner | -4/Factory Tank | -4/Upper Caves Tank | -4/Upper Caves Tank | -4/Zhirov Mutant | -3/Proximity Caves Tank | -3/Research Tank | -3/Testing Tank | -2/Research Scavenger-Tank | -2/Quarantine Tank | -1/Access Mutant | -1/Command Resources | -11 -10 -10 -8 -6 -6 -6 -6 -6 -5 -4 -4 -4 -4 -3 -3 -3 -2 -2 -1 -1 ----------- Run | Yrd Mat Sub Scr Fac Ext Cet Arc Hub Fac Fac Upp Upp Zhi Pro Res Tes Res Qua Acc Com Matter Collected 10213 | 295 675 1609 207 398 1165 371 593 712 1101 265 676 20 . 138 40 104 1357 242 228 17 Remotely 59 | . . . . . . . . . . . . . . . . . 59 . . . Salvage Created 15770 | 164 882 823 . 558 1901 699 697 1214 1974 358 635 . . 248 104 713 2574 555 1608 63 Parts 718 | 10 55 54 . 36 68 23 51 65 64 18 20 . . 13 2 32 94 15 91 7 Haulers Intercepted 8 | . 2 . . . . . . . 1 . . . . . . . 4 . 1 . Recyclers Shooed 15 | . 5 . . . 2 . . . . 1 . . . . . 1 4 . 2 . Parts Field Recycled . | . . . . . . . . . . . . . . . . . . . . . Retrieved Matter . | . . . . . . . . . . . . . . . . . . . . . Parts Self-Destructed 32 | . . 28 . . . . . . . . 2 . . 2 . . . . . . Prevented 26 | . . . . . . . . . . . 18 . . 8 . . . . . . Parts Restored . | . . . . . . . . . . . . . . . . . . . . . Kills | -11 -10 -10 -8 -6 -6 -6 -6 -6 -5 -4 -4 -4 -4 -3 -3 -3 -2 -2 -1 -1 ------- Run | Yrd Mat Sub Scr Fac Ext Cet Arc Hub Fac Fac Upp Upp Zhi Pro Res Tes Res Qua Acc Com Combat Hostiles Destroyed 227 | . 14 29 . 4 22 8 5 20 21 5 11 . . 6 1 9 43 5 21 3 Melee 1 | . . . . . . . . . 1 . . . . . . . . . . . Guns 64 | . 12 6 . 4 11 . 5 19 4 . . . . . . . 3 . . . Cannons 54 | . . 16 . . 4 . . 1 6 1 . . . 3 1 1 13 2 5 1 AOE 72 | . 2 6 . . 4 . . . 3 3 8 . . 3 . 4 22 3 12 2 Classes Destroyed 22 | 2 6 3 . 2 2 . . 3 . . 1 . . 1 . . . . . 2 Worker 17 | . 3 . . 2 . . . 1 2 1 . . . . . . 4 . 4 . Builder 9 | . . . . 1 . . . . 1 . . . . . . . 2 . 5 . Tunneler 4 | 3 1 . . . . . . . . . . . . . . . . . . . Hauler 8 | . 2 . . . . . . . 1 . . . . . . . 4 . 1 . Recycler 16 | 1 4 . . 2 4 . . . 2 . . . . . . . 2 1 . . Mechanic 2 | . 1 . . . . . . . . 1 . . . . . . . . . . Operator 11 | . . . . . 1 . 9 . 1 . . . . . . . . . . . Drone 3 | . . . . . . . . . . . . . . 2 . . 1 . . . Watcher 17 | . 3 . . 3 . 2 . . 4 1 . . . . . . 2 . 2 . Swarmer 56 | . 9 5 . 1 . . . 6 . . 5 . . 3 . . 18 . 9 . Cutter 1 | . . . . . . . . . . . . . . . . . . . . 1 Saboteur 2 | . . . . . . . . . . . . . . . . . . . . 2 Grunt 59 | . 5 8 . . 11 . . 3 11 . 3 . . . . 7 6 3 2 . Brawler 2 | . . . . . . . . . . . 1 . . . . 1 . . . . Duelist 2 | . . . . . . . . 1 1 . . . . . . . . . . . Protector 2 | . . . . . . . . 2 . . . . . . . . . . . . Sentry 25 | . . 1 . 1 6 . 5 . 3 1 . . . 1 1 . 4 . 2 . Hunter 14 | . . . . . 4 . . 1 . 2 2 . . . . . 2 1 2 . Programmer 31 | . . . . 2 . . . 1 6 2 . . . . . . 12 1 7 . Heavy 1 | . . . . . . . . 1 . . . . . . . . . . . . Cetus Guard 8 | . . . . . . 8 . . . . . . . . . . . . . . Lightning 7 | . . . . . . . . 6 . . . . . . . . 1 . . . Protovariant H 1 | . . . . . . . . . . . . . . . . 1 . . . . Subdweller 14 | . . 14 . . . . . . . . . . . . . . . . . . Thug 1 | . . . . . 1 . . . . . . . . . . . . . . . Mutant 1 | . . 1 . . . . . . . . . . . . . . . . . . Best Kill Streak 15 | 2 7 4 . 5 4 5 5 4 6 6 5 . . 3 1 4 12 3 15 2 Combat Bots Only 11 | . 3 4 . 1 4 4 2 4 4 4 5 . . 3 1 4 7 3 11 2 Max Kills in Single Turn 5 | 1 4 2 . 1 1 2 1 2 2 5 2 . . 2 1 3 4 3 5 2 Gunslinging . | . . . . . . . . . . . . . . . . . . . . . Exploded 4 | . 2 2 . . 1 . . . 1 3 2 . . 2 . 3 4 3 4 2 Melee 1 | . . . . . . . . . 1 . . . . . . . . . . . Uniques/NPCs Destroyed . | . . . . . . . . . . . . . . . . . . . . . Combat | -11 -10 -10 -8 -6 -6 -6 -6 -6 -5 -4 -4 -4 -4 -3 -3 -3 -2 -2 -1 -1 -------- Run | Yrd Mat Sub Scr Fac Ext Cet Arc Hub Fac Fac Upp Upp Zhi Pro Res Tes Res Qua Acc Com Hostile Shots Fired 1972 | . 51 151 . 42 165 30 58 367 153 173 66 . . 7 2 36 234 38 68 331 Missed 591 | . 7 41 . 21 59 17 19 72 38 73 25 . . 2 1 10 76 14 22 94 Deflected 2 | . . . . . . . . . . 1 1 . . . . . . . . . Hits 1381 | . 44 110 . 21 106 13 39 295 115 100 41 . . 5 1 26 158 24 46 237 Melee 40 | . . . . . . . . 2 . . 1 . . . . . 5 . . 32 Projectile 1341 | . 44 110 . 21 106 13 39 293 115 100 40 . . 5 1 26 153 24 46 205 AOE 2 | . . . . . . . . 2 . . . . . . . . . . . . Critical Strikes 83 | . . 1 . 1 3 3 . 30 6 8 2 . . 1 . 2 4 . 3 19 Actively Blocked 1 | . . . . . . . . . . . . . . 1 . . . . . . Part Disruptions 7 | . . . . . . . . 2 3 . . . . . . . 1 . . 1 Damage Taken 24499 | . 396 2019 . 283 982 271 631 4671 1692 1628 520 . . 133 29 603 3790 462 972 5417 Core 3180 | . 50 360 . . 12 . 5 303 94 62 22 . . . . 18 353 95 47 1759 Absorbed by Shields 1134 | . . . . . 347 154 . . . 288 304 . . . . . 41 . . . Reduced by Siege Mode 353 | . . . . . . . . 353 . . . . . . . . . . . . Redirected to Shielding 48 | . . . . . . . . . . . . . . . . . 48 . . . Ignored by Resistances 6336 | . . . . 34 . . . 3504 759 299 . . . . . . 819 72 132 717 Regen/Repaired (Parts) 69 | . 69 . . . . . . . . . . . . . . . . . . . Core Remaining (%) 85 | 100 . . 54 . . . . 70 92 . . . . 94 . 98 . 91 . . Volleys Fired 1042 | 5 78 139 . 60 102 12 57 98 125 49 36 2 . 10 14 20 150 22 58 5 Largest 3 | 2 2 2 . 3 3 1 2 2 3 3 1 1 . 3 2 1 3 3 3 2 Hottest 346 | 70 100 120 . 194 194 43 68 88 243 204 98 98 . 208 162 90 333 346 326 300 Shots Fired 1562 | 10 139 225 . 95 155 12 111 170 161 65 36 2 . 17 16 21 217 34 69 7 Gun 718 | 10 130 65 . 51 85 . 111 150 47 5 . . . . 8 . 56 . . . Cannon 710 | . . 144 . 44 55 . . 19 106 55 21 2 . 13 8 16 135 30 61 1 Launcher 116 | . 2 5 . . 15 12 . 1 8 5 15 . . 4 . 5 26 4 8 6 Special 18 | . 7 11 . . . . . . . . . . . . . . . . . . Kinetic 548 | 5 65 104 . 27 34 . 111 169 . . . . . . . . 33 . . . Thermal 741 | 5 72 116 . 68 106 . . . 102 60 16 2 . 2 8 1 119 27 36 1 Explosive 17 | . 2 5 . . . . . . . . . . . . . . 10 . . . Electromagnetic 256 | . . . . . 15 12 . 1 59 5 20 . . 15 8 20 55 7 33 6 Robot Hit Streak 28 | 7 10 28 . 11 16 10 10 13 7 11 2 . . 5 5 4 11 6 6 5 Robot Miss Streak 11 | . 4 8 . 6 3 2 4 5 4 4 4 . . 2 3 3 10 11 5 4 Penetration Max 1 | . . . . . 1 . 1 1 . . . . . . . . . . . . Secondary Targets 11 | . 4 . . . . . . 7 . . . . . . . . . . . . Max Gunslinging Chain 1 | . 1 . . . . . . 1 . . . . . . . . . . . . Capacitor 149 | . . . . . . . . . 56 18 . . . . 12 16 . . 47 . Shots Hit Robots 789 | 7 80 119 . 36 84 8 70 118 83 14 2 . . 7 5 9 101 6 34 6 Core Hits 638 | 4 39 40 . 20 50 14 31 46 48 13 19 . . 7 3 13 104 20 81 86 Critical Kills 22 | . . 3 . . 3 . 5 7 1 1 . . . . . . . . 2 . Critical Parts Destroyed 16 | . 1 2 . . . . 8 5 . . . . . . . . . . . . Critical Strikes 47 | . 3 6 . . 8 . 13 12 1 1 . . . . . . . . 2 1 Burn 7 | . 2 1 . . 4 . . . . . . . . . . . . . . . Meltdown 6 | . . 1 . . 1 . . . 1 1 . . . . . . . . 2 . Destroy 33 | . 1 4 . . 3 . 13 12 . . . . . . . . . . . . Blast 1 | . . . . . . . . . . . . . . . . . . . . 1 Melee Attacks 14 | . . . . . . 4 2 2 6 . . . . . . . . . . . Impact . | . . . . . . . . . . . . . . . . . . . . . Slashing 14 | . . . . . . 4 2 2 6 . . . . . . . . . . . Piercing . | . . . . . . . . . . . . . . . . . . . . . Sneak Attacks 4 | . . . . . . . 2 . 2 . . . . . . . . . . . Combat Hostiles . | . . . . . . . . . . . . . . . . . . . . . Follow-up Attacks . | . . . . . . . . . . . . . . . . . . . . . Damage Inflicted 36641 | 83 1309 3070 . 821 3014 1082 2090 3290 3976 1245 826 . . 494 198 1079 8323 1011 3653 1077 Guns 10879 | 83 1114 1057 . 674 1619 . 1900 2845 1015 49 . . . . . . 523 . . . Cannons 10687 | . . 1617 . 147 674 . . 374 1662 402 32 . . 230 198 231 3401 330 1311 78 Explosions 14480 | . 195 396 . . 721 1082 . . 1052 775 794 . . 264 . 848 4393 681 2342 937 Melee 506 | . . . . . . . 190 71 245 . . . . . . . . . . . Ramming 89 | . . . . . . . . . 2 19 . . . . . . 6 . . 62 Kinetic 8098 | 27 507 999 . 259 695 . 1900 3219 . . . . . . . . 327 87 . 78 Thermal 12113 | 56 607 1675 . 562 1758 . . . 1477 780 . . . 53 . 269 2924 330 1497 125 Explosive 4187 | . 195 396 . . . . . . . 246 . . . . . . 2706 . 644 . Electromagnetic 11648 | . . . . . 561 1082 . . 2252 200 826 . . 441 198 810 2360 594 1512 812 Impact . | . . . . . . . . . . . . . . . . . . . . . Slashing 506 | . . . . . . . 190 71 245 . . . . . . . . . . . Piercing . | . . . . . . . . . . . . . . . . . . . . . Highest Corruption 76 | . . 16 . . 13 1 11 76 17 6 8 . . 2 . . 24 24 7 24 Average Corruption 14 | . . 14 . . 13 1 9 48 8 5 6 . . 2 . . 10 24 6 15 Corruption Purged 14 | . . 11 . . . . 3 . . . . . . . . . . . . . Corruption Blocked . | . . . . . . . . . . . . . . . . . . . . . Effects 382 | . . 140 . . 22 . 15 60 37 19 4 . . 2 . . 40 22 10 11 Message Errors 71 | . . 29 . . 3 . 3 9 5 7 . . . 1 . . 9 4 . 1 Matter Fused 79 | . . 27 . . 7 . 2 12 9 5 1 . . . . . 10 3 2 1 Heat Flow Errors 45 | . . 19 . . 4 . 2 5 5 1 . . . . . . 4 3 2 . Energy Discharges 38 | . . 17 . . 3 . 1 3 4 1 2 . . 1 . . 1 3 1 1 Parts Rejected 2 | . . . . . . . . . . . . . . . . . . . . 2 Parts Fused 4 | . . 1 . . . . 1 . 1 . . . . . . . . . 1 . Data Loss (minor) 39 | . . 18 . . 3 . 2 4 5 . . . . . . . . 4 2 1 Data Loss (major) 18 | . . 5 . . . . 2 1 3 2 1 . . . . . 3 . 1 . Misfires 22 | . . 12 . . . . . 1 3 . . . . . . . 5 1 . . Alerts 8 | . . 4 . . 2 . . . . 1 . . . . . . . . 1 . Misdirections 7 | . . . . . . . . 2 . . . . . . . . . . . 5 Weapon Failures 49 | . . 8 . . . . 2 23 2 2 . . . . . . 8 4 . . Overload Shots . | . . . . . . . . . . . . . . . . . . . . . Overflow Damage 1374 | . 7 12 . . 7 30 139 . 177 33 . . . 10 9 10 710 2 155 73 Projectiles 454 | . . . . . 2 . . . 95 23 . . . . 9 10 222 2 63 28 Explosions 721 | . 7 12 . . 5 30 . . 27 10 . . . 10 . . 483 . 92 45 Melee 199 | . . . . . . . 139 . 55 . . . . . . . 5 . . . Knockbacks 21 | . . 12 . . . . . 8 . . . . . . . . . 1 . . Impact . | . . . . . . . . . . . . . . . . . . . . . Kinetic 20 | . . 12 . . . . . 7 . . . . . . . . . 1 . . Secondary 1 | . . . . . . . . 1 . . . . . . . . . . . . Self-Inflicted Damage 1528 | . . 36 . . 34 44 . . . 86 83 . . 18 . 14 1031 7 24 151 Shots 62 | . . 1 . . 3 2 . . . 3 6 . . 1 . 1 24 3 2 16 Rammed 15 | . . . . . . . . . . . . . . . . . . . . 15 Targets Rammed 18 | . . . . . . . . . 1 1 . . . . . . 1 . . 15 Kicked 3 | . . . . . . . . . 1 1 . . . . . . 1 . . . Crushed . | . . . . . . . . . . . . . . . . . . . . . Highest Temperature 486 | 9 288 255 . 306 306 . 208 245 486 420 144 112 . 177 160 231 368 . 212 255 Average Temperature 88 | 6 69 58 . 82 76 . 125 88 92 116 75 58 . 63 64 105 130 . 80 165 Received Heat Transfer 3088 | . 57 321 . 72 321 22 36 518 393 728 35 . . . . 99 117 63 54 252 Effects 16 | . . . . 3 . . . . 6 5 . . . . . . 2 . . . Shutdowns 1 | . . . . . . . . . . 1 . . . . . . . . . . Energy Bleed 2 | . . . . . . . . . 1 1 . . . . . . . . . . Interference 9 | . . . . 3 . . . . 1 3 . . . . . . 2 . . . Damage (major) 4 | . . . . . . . . . 4 . . . . . . . . . . . Siege Activations 5 | . . . . . . . . 4 . . . . . . . . . . . 1 Total Turns 228 | . . . . . . . . 226 . . . . . . . . . . . 2 Longest Duration 128 | . . . . . . . . 128 . . . . . . . . . . . 2 Martial Activations . | . . . . . . . . . . . . . . . . . . . . . Shielding Activations 2 | . . . . . . . . . . 1 1 . . . . . . . . . Total Turns 33 | . . . . . . . . . . 23 10 . . . . . . . . . Longest Duration 23 | . . . . . . . . . . 23 10 . . . . . . . . . Robots Disrupted 4 | . . . . . . . . . 1 . . . . . . . 1 . 1 1 Combat Hostiles 4 | . . . . . . . . . 1 . . . . . . . 1 . 1 1 Robots Corrupted 36 | . . . . . 2 9 . . 6 1 3 . . . . 4 8 . 3 . Combat Hostiles 32 | . . . . . 2 8 . . 6 1 3 . . . . 4 5 . 3 . Parts Fried 66 | . . . . . 2 8 . 1 10 . 6 . . . 2 4 21 6 6 . Impact Corruptions 1 | . . . . . . . . . . . . . . . . . 1 . . . Robots Melted 7 | . . 1 . . 2 . . . 1 1 . . . . . . . . 2 . Combat Hostiles 4 | . . 1 . . 1 . . . 1 . . . . . . . . . 1 . Parts Melted 44 | . 1 5 . 2 12 . . . 12 3 . . . . . . 4 . 5 . Heat Transferred 14526 | 149 1665 2357 . 814 2740 . . . 1910 857 . . . 50 . 150 2309 198 1203 124 Parts Sabotaged 10 | . . . . . . . . . . . . . . . . . . . . 10 Parts Stolen 2 | . . . . . . . . . . . . . . . . . 2 . . . Parts Stripped . | . . . . . . . . . . . . . . . . . . . . . Power Chain Reactions 18 | . . . . . 1 . . . 2 1 . . . 1 . 1 5 1 5 1 Alert | -11 -10 -10 -8 -6 -6 -6 -6 -6 -5 -4 -4 -4 -4 -3 -3 -3 -2 -2 -1 -1 ------- Run | Yrd Mat Sub Scr Fac Ext Cet Arc Hub Fac Fac Upp Upp Zhi Pro Res Tes Res Qua Acc Com Maximum Alert Level 5 | . . . . 1 1 1 . . 1 1 . . . . 1 . 4 3 4 5 Low Security (%) 65 | 100 100 . . 98 63 22 100 100 70 39 . . . . 16 100 31 . . . Level 1 16 | . . . . 1 36 77 . . 29 60 . . . . 83 . 6 . . . Level 2 8 | . . . . . . . . . . . . . . . . . 34 77 30 . Level 3 6 | . . . . . . . . . . . . . . . . . 16 22 66 46 Level 4 1 | . . . . . . . . . . . . . . . . . 10 . 2 30 Level 5 . | . . . . . . . . . . . . . . . . . . . . 22 High Security . | . . . . . . . . . . . . . . . . . . . . . Max Security . | . . . . . . . . . . . . . . . . . . . . . Peak Influence 1785 | 5 141 . . 321 329 256 182 167 365 337 . . . . 300 184 1230 914 1154 1785 Initial 732 | . . . . . 156 167 82 39 58 160 . . . . 300 54 93 680 532 732 Average 231 | 1 47 . . 34 182 210 142 86 126 227 . . . . 235 114 502 697 817 1189 Influence Increases 9712 | 20 538 290 . 567 739 209 222 557 772 416 265 . . 100 347 242 1869 414 942 1203 Destroy 0b10 Robot/C 4340 | . 280 280 . 80 480 160 100 400 420 100 220 . . 80 20 180 880 160 440 60 Destroy 0b10 Robot/NC 460 | 20 70 . . 40 30 10 45 20 55 15 . . . 10 . . 70 15 60 . Destroy Leader 690 | . 70 10 . 36 62 . . 60 70 32 30 . . 10 10 20 172 12 96 . Allied During Kill 276 | . . . . . 20 . 3 9 . . . . . . . . 30 107 107 . Successful Hack 167 | . 12 . . . 14 9 . . 48 25 . . . . . 24 18 3 . 14 Disable Machine 690 | . 60 . . 60 75 30 60 30 90 90 . . . . 15 . 60 30 90 . Destroy Structure 1246 | . 16 . . 53 43 . 14 38 74 124 . . . . 2 18 564 87 149 64 Advance Influence 300 | . . . . . . . . . . . . . . . 300 . . . . . Partial Spotted 75 | . . . . . . . . . 15 15 . . . . . . 45 . . . Lose Combat Pursuer 1170 | . 30 . . . 15 . . . . 15 15 . . . . . 30 . . 1065 Miscellaneous 298 | . . . . 298 . . . . . . . . . . . . . . . . Influence Decreases 7927 | 20 409 344 75 246 761 302 314 552 563 472 491 46 . 100 250 173 825 736 684 564 Entered New Map 2390 | . . 63 75 . 165 132 124 75 61 168 101 10 . . . 43 73 530 356 414 Time Decay 4607 | 20 409 261 . 246 446 160 180 286 432 294 380 36 . 100 150 130 523 206 278 70 Search Patrol Dispatched 100 | . . . . . . . . . . . . . . . 100 . . . . . Lost Part 520 | . . 20 . . 30 10 10 120 70 10 10 . . . . . 150 . 10 80 Lost Ally 310 | . . . . . 120 . . 71 . . . . . . . . 79 . 40 . Squads Dispatched 46 | . 1 . . 1 4 . . 5 9 3 . . . . . 2 14 3 3 1 Investigation 7 | . . . . . 3 . . . 1 1 . . . . . 1 1 . . . Extermination 12 | . . . . 1 . . . . 3 1 . . . . . 1 4 1 1 . Reinforcement 17 | . 1 . . . 1 . . 2 5 1 . . . . . . 5 1 . 1 Assault 7 | . . . . . . . . 3 . . . . . . . . 1 1 2 . Garrison 3 | . . . . . . . . . . . . . . . . . 3 . . . Intercept . | . . . . . . . . . . . . . . . . . . . . . Searches Triggered 1 | . . . . . . . . . . . . . . . 1 . . . . . Construction Impeded 2 | . . . . . . . . . 1 1 . . . . . . . . . . Haulers Reinforced 2 | . . . . . . . . . 1 . . . . . . . 1 . . . Active Scanning Responses . | . . . . . . . . . . . . . . . . . . . . . Cargo Convoy Interrupts 1 | . . . . . . . . . 1 . . . . . . . . . . . Stealth | -11 -10 -10 -8 -6 -6 -6 -6 -6 -5 -4 -4 -4 -4 -3 -3 -3 -2 -2 -1 -1 --------- Run | Yrd Mat Sub Scr Fac Ext Cet Arc Hub Fac Fac Upp Upp Zhi Pro Res Tes Res Qua Acc Com Distress Signals 23 | . 3 . . 1 2 2 . 2 2 . . . . . . . 5 2 3 1 Communications Jammed . | . . . . . . . . . . . . . . . . . . . . . Distress Signals . | . . . . . . . . . . . . . . . . . . . . . Times Spotted 477 | . 25 29 . 12 27 10 22 34 40 17 9 . . 6 2 13 58 10 31 132 Peak Tracking Total 119 | . 3 4 . 3 4 5 2 8 5 9 4 . . 2 1 4 7 5 6 119 Tactical Retreats 12 | . 1 . . . 1 . . . . 1 1 . . . . . 2 . . 6 Traps | -11 -10 -10 -8 -6 -6 -6 -6 -6 -5 -4 -4 -4 -4 -3 -3 -3 -2 -2 -1 -1 ------- Run | Yrd Mat Sub Scr Fac Ext Cet Arc Hub Fac Fac Upp Upp Zhi Pro Res Tes Res Qua Acc Com Traps Triggered 17 | . 1 1 . 1 8 . . . 1 2 . . . . . 1 1 1 . . Indirectly 1 | . . . . . . . . . . . . . . . . 1 . . . . Trap Hack Attempts . | . . . . . . . . . . . . . . . . . . . . . Triggered . | . . . . . . . . . . . . . . . . . . . . . Disarmed . | . . . . . . . . . . . . . . . . . . . . . Reprogrammed . | . . . . . . . . . . . . . . . . . . . . . Reused . | . . . . . . . . . . . . . . . . . . . . . Traps Extracted . | . . . . . . . . . . . . . . . . . . . . . Installed . | . . . . . . . . . . . . . . . . . . . . . Triggered . | . . . . . . . . . . . . . . . . . . . . . Machines | -11 -10 -10 -8 -6 -6 -6 -6 -6 -5 -4 -4 -4 -4 -3 -3 -3 -2 -2 -1 -1 ---------- Run | Yrd Mat Sub Scr Fac Ext Cet Arc Hub Fac Fac Upp Upp Zhi Pro Res Tes Res Qua Acc Com Machines Disabled 54 | . 5 3 . 4 7 3 4 2 6 6 . . . . 1 1 4 2 6 . Max in Single Turn 4 | . 1 2 . 3 2 1 1 1 2 4 . . . . 1 1 1 1 2 . Garrison Access 2 | . . . . . . . . 1 . 1 . . . . . . . . . . Network Hub 2 | . . . . . . . . 2 . . . . . . . . . . . . Machines Repaired . | . . . . . . . . . . . . . . . . . . . . . Machines Dismantled . | . . . . . . . . . . . . . . . . . . . . . Machines Sabotaged . | . . . . . . . . . . . . . . . . . . . . . Overloaded Fab Kills . | . . . . . . . . . . . . . . . . . . . . . Hacking | -11 -10 -10 -8 -6 -6 -6 -6 -6 -5 -4 -4 -4 -4 -3 -3 -3 -2 -2 -1 -1 --------- Run | Yrd Mat Sub Scr Fac Ext Cet Arc Hub Fac Fac Upp Upp Zhi Pro Res Tes Res Qua Acc Com Machines Accessed 60 | . 10 3 3 5 8 1 . . 7 4 . . 4 . 1 1 6 1 5 1 Terminals 33 | . 7 . . 2 8 1 . . 1 2 . . . . 1 1 5 1 3 1 Fabricators 2 | . . . . . . . . . 2 . . . . . . . . . . . Repair Stations 2 | . 1 . . . . . . . . 1 . . . . . . . . . . Recycling Units 4 | . 2 . . 1 . . . . 1 . . . . . . . . . . . Scanalyzers 4 | . . . . 1 . . . . 3 . . . . . . . . . . . Garrison Access 5 | . . . . 1 . . . . . 1 . . . . . . 1 . 2 . Total Hacks 146 | . 16 6 13 8 14 2 . . 25 9 . . 17 . 2 2 14 1 13 4 Successful 78 | . 10 6 13 4 3 1 . . 13 4 . . 17 . . 2 2 1 . 2 Failed 68 | . 6 . . 4 11 1 . . 12 5 . . . . 2 . 12 . 13 2 Catastrophic 18 | . . . . 1 3 1 . . 3 1 . . . . 1 . 3 . 4 1 Database Lockouts . | . . . . . . . . . . . . . . . . . . . . . Manual 24 | . 13 . . 2 2 . . . 1 2 . . . . . . 2 1 . 1 Terminals 71 | . 12 . . 3 14 2 . . 2 7 . . . . 2 2 12 1 10 4 Fabricators 5 | . . . . . . . . . 5 . . . . . . . . . . . Repair Stations 3 | . 2 . . . . . . . . 1 . . . . . . . . . . Recycling Units 4 | . 2 . . 1 . . . . 1 . . . . . . . . . . . Scanalyzers 19 | . . . . 2 . . . . 17 . . . . . . . . . . . Garrison Access 8 | . . . . 2 . . . . . 1 . . . . . . 2 . 3 . Terminal Hacks 49 | . . 6 13 1 3 1 . . . 2 . . 17 . . 2 2 . . 2 Record 22 | . . 4 13 . . . . . . . . . 5 . . . . . . . Part Schematic 4 | . . . . . . . . . . . . . 4 . . . . . . . Robot Analysis 4 | . . . . . . . . . . . . . 4 . . . . . . . Prototype ID Bank 4 | . . . . . . . . . . . . . 4 . . . . . . . Open Door 5 | . . 1 . . 3 1 . . . . . . . . . . . . . . Branch Access Points 2 | . . . . . . . . . . 1 . . . . . . 1 . . . Emergency Access Points 1 | . . . . . . . . . . . . . . . . . . . . 1 Terminal Index 2 | . . . . . . . . . . 1 . . . . . 1 . . . . Alert Level 2 | . . . . . . . . . . . . . . . . . 1 . . 1 Zone Layout 2 | . . . . 1 . . . . . . . . . . . 1 . . . . Release Object 1 | . . 1 . . . . . . . . . . . . . . . . . . Fabricator Hacks 3 | . . . . . . . . . 3 . . . . . . . . . . . Network Status 2 | . . . . . . . . . 2 . . . . . . . . . . . Build 1 | . . . . . . . . . 1 . . . . . . . . . . . Repair Station Hacks 3 | . 2 . . . . . . . . 1 . . . . . . . . . . Scan Component 2 | . 1 . . . . . . . . 1 . . . . . . . . . . Repair 1 | . 1 . . . . . . . . . . . . . . . . . . . Recycling Unit Hacks 4 | . 2 . . 1 . . . . 1 . . . . . . . . . . . Retrieve Components 4 | . 2 . . 1 . . . . 1 . . . . . . . . . . . Scanalyzer 10 | . . . . 2 . . . . 8 . . . . . . . . . . . Insert Component 4 | . . . . . . . . . 4 . . . . . . . . . . . Analyze 1 | . . . . . . . . . 1 . . . . . . . . . . . Retrieve Study 5 | . . . . 2 . . . . 3 . . . . . . . . . . . Garrison Access Hacks 1 | . . . . . . . . . . 1 . . . . . . . . . . Seal Access 1 | . . . . . . . . . . 1 . . . . . . . . . . Unauthorized Hacks 8 | . 6 . . . . . . . 1 . . . . . . . . 1 . . Terminals 7 | . 6 . . . . . . . . . . . . . . . . 1 . . Track 1 | . . . . . . . . . . . . . . . . . . 1 . . Skim 6 | . 6 . . . . . . . . . . . . . . . . . . . Fabricators 1 | . . . . . . . . . 1 . . . . . . . . . . . Liberate 1 | . . . . . . . . . 1 . . . . . . . . . . . Repair Stations . | . . . . . . . . . . . . . . . . . . . . . Recycling Units . | . . . . . . . . . . . . . . . . . . . . . Scanalyzers . | . . . . . . . . . . . . . . . . . . . . . Garrison Access . | . . . . . . . . . . . . . . . . . . . . . Data Cores Recovered 1 | . . . . . . . . . 1 . . . . . . . . . . . Used . | . . . . . . . . . . . . . . . . . . . . . Hacking Detections 33 | . 5 . . 4 7 . . . 4 1 . . . . 1 1 4 . 5 1 Full Trace Events 3 | . . . . . 2 . . . . 1 . . . . . . . . . . Feedback Events 1 | . . . . . . . . . . 1 . . . . . . . . . . Corruption 1 | . . . . . . . . . . 1 . . . . . . . . . . Feedback Blocked . | . . . . . . . . . . . . . . . . . . . . . Robot Schematics Acquired 2 | . . . . . . . . . . . . . . . . . . 2 . . Robots Built . | . . . . . . . . . . . . . . . . . . . . . Authchips . | . . . . . . . . . . . . . . . . . . . . . Time . | . . . . . . . . . . . . . . . . . . . . . Total Robot Build Rating . | . . . . . . . . . . . . . . . . . . . . . Part Schematics Acquired 8 | . . . . . . . . . 1 . . . 4 . . . . 3 . . Parts Built 2 | . . . . . . . . . 2 . . . . . . . . . . . Authchips . | . . . . . . . . . . . . . . . . . . . . . Time 139 | . . . . . . . . . 139 . . . . . . . . . . . Total Part Build Rating 18 | . . . . . . . . . 18 . . . . . . . . . . . Part Studies Acquired 5 | . . . . 2 . . . . 3 . . . . . . . . . . . Parts Repaired 1 | . 1 . . . . . . . . . . . . . . . . . . . Time 32 | . 32 . . . . . . . . . . . . . . . . . . . Parts Recycled . | . . . . . . . . . . . . . . . . . . . . . Recycled Matter . | . . . . . . . . . . . . . . . . . . . . . Retrieved Matter . | . . . . . . . . . . . . . . . . . . . . . Retrieved Components 37 | . 18 . . 10 . . . . 9 . . . . . . . . . . . Parts Scanalyzed 2 | . . . . . . . . . 2 . . . . . . . . . . . Part Schematics Acquired 1 | . . . . . . . . . 1 . . . . . . . . . . . Parts Damaged 1 | . . . . . . . . . 1 . . . . . . . . . . . Bothacking | -11 -10 -10 -8 -6 -6 -6 -6 -6 -5 -4 -4 -4 -4 -3 -3 -3 -2 -2 -1 -1 ------------ Run | Yrd Mat Sub Scr Fac Ext Cet Arc Hub Fac Fac Upp Upp Zhi Pro Res Tes Res Qua Acc Com Used RIF Installer . | . . . . . . . . . . . . . . . . . . . . . Robots Hacked . | . . . . . . . . . . . . . . . . . . . . . Non-combat . | . . . . . . . . . . . . . . . . . . . . . Combat . | . . . . . . . . . . . . . . . . . . . . . Robot Hacks Applied . | . . . . . . . . . . . . . . . . . . . . . Relay Couplers Released 2 | . . . . . . . . 2 . . . . . . . . . . . . Machine Destruction 2 | . . . . . . . . 2 . . . . . . . . . . . . Fabnet Peak Effective % . | . . . . . . . . . . . . . . . . . . . . . Robots Rewired 2 | . . . . . 2 . . . . . . . . . . . . . . . Allies Hacked 1 | . . . . . . . . . . . . . . . . . . 1 . . Hacks Repelled . | . . . . . . . . . . . . . . . . . . . . . Allies | -11 -10 -10 -8 -6 -6 -6 -6 -6 -5 -4 -4 -4 -4 -3 -3 -3 -2 -2 -1 -1 -------- Run | Yrd Mat Sub Scr Fac Ext Cet Arc Hub Fac Fac Upp Upp Zhi Pro Res Tes Res Qua Acc Com Total Allies 17 | . . . . . 7 . 2 3 . . . . . . . . 1 4 . . Largest Group 4 | . . . . . 3 . 2 2 . . . . . . . . 1 4 3 . Highest-Rated Group 276 | . . . . . 178 . 64 70 . . . . . . . . 110 276 176 . Highest-Rated Ally 116 | . . . . . 116 . 32 37 . . . . . . . . 110 69 69 . Initial UFD Resources 41 | . . . . 23 23 23 23 23 26 30 30 30 30 34 34 34 37 37 41 41 Total Orders 13 | . . . . . . . . . . . . . . . . . 11 . 2 . STAY 3 | . . . . . . . . . . . . . . . . . 2 . 1 . FOLLOW 1 | . . . . . . . . . . . . . . . . . . . 1 . EXPLORE 6 | . . . . . . . . . . . . . . . . . 6 . . . RETURN 3 | . . . . . . . . . . . . . . . . . 3 . . . Ally Attacks 111 | . . . . . 22 . 2 16 . . . . . . . . 10 38 23 . Total Damage 2248 | . . . . . 546 . 97 151 . . . . . . . . 189 919 346 . Kills 14 | . . . . . 3 . . 3 . . . . . . . . 1 6 1 . Allies Corrupted 2 | . . . . . . . . 1 . . . . . . . . . . 1 . Allies Melted . | . . . . . . . . . . . . . . . . . . . . . X0-1V1 Amusement Gains 472 | . 23 30 9 94 29 . 8 12 41 22 10 10 1 9 6 7 36 3 67 55 Good Acts 102 | . . 11 . 6 14 1 1 7 14 6 11 1 . 3 . 2 8 6 4 7 Bad Acts 60 | . . 10 . 3 4 . 1 6 5 4 4 1 . 2 . 2 11 1 2 4 Intel | -11 -10 -10 -8 -6 -6 -6 -6 -6 -5 -4 -4 -4 -4 -3 -3 -3 -2 -2 -1 -1 ------- Run | Yrd Mat Sub Scr Fac Ext Cet Arc Hub Fac Fac Upp Upp Zhi Pro Res Tes Res Qua Acc Com Active Infowar (turns) 10398 | 21 2325 1958 903 929 139 . . 126 751 208 274 380 280 413 300 120 860 411 . . Optics 888 | . . . 888 . . . . . . . . . . . . . . . . . Sensors 1300 | . . . . 44 49 . . 126 665 206 132 . . . . 78 . . . . IFF 907 | . . . . 817 90 . . . . . . . . . . . . . . . Terrain 1917 | . . . . . . . . . . 2 142 380 280 354 . . 348 411 . . Traps 138 | . . . . 138 . . . . . . . . . . . . . . . . Seismic 4304 | 21 2325 1958 . . . . . . . . . . . . . . . . . . Decoding 321 | . . . . . . . . . . . . . . . . . 321 . . . Cloaking 86 | . . . . . . . . . 86 . . . . . . . . . . . Spoofing 542 | . . . . . . . . . . . . . . 59 300 42 141 . . . Jamming 62 | . . . . . . . . . . . . . . . . . 62 . . . ECM 15 | . . . 15 . . . . . . . . . . . . . . . . . Robot Analysis Total 4 | . . . . . . . . . . . . . 4 . . . . . . . Derelict Logs Recovered 4 | . . 3 . . . . . . . . 1 . . . . . . . . . Drone Launches 14 | . . . . . . . . . . . . . . . . . 14 . . . Drone Recoveries 6 | . . . . . . . . . . . . . . . . . 6 . . . Decoded 0b10 Intel 18 | . . . . . . . . . . . . . . . . . 18 . . . Items 18 | . . . . . . . . . . . . . . . . . 18 . . . Exploration | -11 -10 -10 -8 -6 -6 -6 -6 -6 -5 -4 -4 -4 -4 -3 -3 -3 -2 -2 -1 -1 ------------- Run | Yrd Mat Sub Scr Fac Ext Cet Arc Hub Fac Fac Upp Upp Zhi Pro Res Tes Res Qua Acc Com Turns Passed 19993 | 121 2470 4366 1618 1039 1107 335 371 637 1928 659 887 380 280 528 300 279 1501 428 603 156 Spaces Moved 9676 | 60 700 1764 734 640 604 218 139 170 1211 369 448 193 140 264 147 147 854 313 416 145 Core 104 | 8 . . . . . . . . . . . . . . . . . . . 96 Treads 1020 | 52 700 186 . . . . . 74 . . . . . . . . . . . 8 Legs 4543 | . . . . . . . . . 1211 369 448 193 140 264 147 147 854 313 416 41 Wheels 4009 | . . 1578 734 640 604 218 139 96 . . . . . . . . . . . . Hover . | . . . . . . . . . . . . . . . . . . . . . Flight . | . . . . . . . . . . . . . . . . . . . . . Fastest Speed 50 | 50 160 160 190 95 97 100 115 125 104 113 111 186 186 184 184 108 106 112 115 50 Average Speed 160 | 145 238 213 216 120 106 123 124 148 120 124 174 192 186 185 184 141 118 113 115 74 Slowest Speed 480 | 160 240 480 230 145 130 130 130 230 212 196 193 196 186 186 186 184 187 114 118 160 Overloaded Moves . | . . . . . . . . . . . . . . . . . . . . . Propulsion Burnouts . | . . . . . . . . . . . . . . . . . . . . . Robots Hopped . | . . . . . . . . . . . . . . . . . . . . . Potential Cave-ins 30 | . . . . 2 8 . . . . 11 . . . . . . . 4 . 5 Cave-ins Triggered . | . . . . . . . . . . . . . . . . . . . . . Teleports 1 | . . . . . . . . . . . . . . . . . 1 . . . Exploration Rate (%) 45 | 4 98 94 62 19 72 75 89 30 30 14 65 44 61 50 6 19 42 41 21 10 Regions Visited 20 Branch Regions 13 Pre-discovered Areas 7 | . 2 2 . . . . . . . . . . 3 . . . . . . . Known Exits Taken 9 | . . . 1 1 1 . . 1 1 1 . . . 1 . 1 1 . . . Unknown Exits Taken 11 | 1 1 1 . . . 1 1 . . . 1 1 1 . 1 . . 1 1 . Scrap Searched 17 | . . 6 4 . . . . . . . 4 2 . 1 . . . . . . Spaces Dug 163 | . 4 1 . 12 13 . . . 17 24 2 1 . 1 1 1 50 23 3 10 Terrain Destroyed 793 | . 20 44 . 68 47 . 27 46 43 92 16 2 . 21 1 8 245 38 44 31 Melee 1 | . . . . . . . . . 1 . . . . . . . . . . . Projectile 389 | . 6 33 . 35 37 . 27 46 42 32 16 2 . 2 1 1 59 21 19 10 AOE 403 | . 14 11 . 33 10 . . . . 60 . . . 19 . 7 186 17 25 21 Terrain Rammed . | . . . . . . . . . . . . . . . . . . . . . Walls Destroyed . | . . . . . . . . . . . . . . . . . . . . . Machines Disabled . | . . . . . . . . . . . . . . . . . . . . . Actions | -11 -10 -10 -8 -6 -6 -6 -6 -6 -5 -4 -4 -4 -4 -3 -3 -3 -2 -2 -1 -1 --------- Run | Yrd Mat Sub Scr Fac Ext Cet Arc Hub Fac Fac Upp Upp Zhi Pro Res Tes Res Qua Acc Com Total 12766 | 80 1350 2106 761 822 908 269 220 360 1574 516 514 200 162 286 171 212 1184 361 520 190 Wait 1088 | . 529 89 2 53 91 2 8 31 132 33 5 . . 5 . 8 64 9 21 6 Move 9656 | 59 699 1763 733 639 603 217 138 169 1210 368 447 192 139 263 146 146 853 312 415 145 Hop . | . . . . . . . . . . . . . . . . . . . . . Pick Up 223 | 8 20 23 6 19 16 11 1 11 29 9 7 1 7 1 4 10 34 3 2 1 Fast Attach 97 | 7 1 9 3 11 3 . 4 9 11 9 3 2 4 . 2 3 9 2 5 . Attach 120 | . 2 12 . 7 6 5 . 14 16 6 1 . 2 2 1 2 27 . 6 11 Detach 32 | . 2 . . 1 3 1 . 6 2 . . . . 2 . 1 8 . 3 3 Swap 200 | 1 8 40 8 13 17 5 5 8 19 22 8 . 1 3 2 10 19 7 4 . Drop 216 | . 11 31 9 18 10 12 5 11 23 19 7 3 9 . 2 12 19 6 6 3 Fire 1042 | 5 78 139 . 60 102 12 57 98 125 49 36 2 . 10 14 20 150 22 58 5 Melee 14 | . . . . . . 4 2 2 6 . . . . . . . . . . . Ram 16 | . . . . . . . . 1 . . . . . . . . . . . 15 Kick 3 | . . . . . . . . . 1 1 . . . . . . 1 . . . Crush 1 | . . . . . . . . . . . . . . . . . . . . 1 Escape Stasis 51 | . . . . . 51 . . . . . . . . . . . . . . . Rewire 6 | . . . . . 6 . . . . . . . . . . . . . . . Trap . | . . . . . . . . . . . . . . . . . . . . . Miscellaneous 1 | . . . . 1 . . . . . . . . . . . . . . . . Route ------- -11/Scrapyard -10/Materials (discovered 6 exits: *Mat x3 / [*Min x2] / *Sub) -10/Subcaves (discovered 4 exits: *Mat x2 / Rec / *Scr) -8/Scraptown -6/Factory (discovered 2 exits: *Fac / *Ext) -6/Extension (discovered 3 exits: *Fac x2 / *Cet) -6/Cetus (discovered 2 exits: *Fac / [*Arc]) -6/Archives (discovered 3 exits: *Fac / [*Hub x2]) -6/Hub_04(d) -5/Factory (discovered 3 exits: *Fac x2 / Upp) -4/Factory (discovered 4 exits: Res / *Upp x2 / Arm) -4/Upper Caves -4/Upper Caves -4/Zhirov -3/Proximity Caves -3/Research -3/Testing -2/Research (discovered 2 exits: *Qua x2) -2/Quarantine (discovered 2 exits: *Acc / Frg) -1/Access -1/Command History --------- Turn | Location | Event 9 | -11/Scrapyard | Discovered new exit (range 15) 122 | -11/Scrapyard | Entered Materials 315 | -10/Materials | Build established: Mutant 589 | -10/Materials | Discovered new exit (range 10) 722 | -10/Materials | Derelicts attacked the area 798 | -10/Materials | Discovered new exit (range 4) 1405 | -10/Materials | Discovered new exit (range 8) 1534 | -10/Materials | Discovered new exit (range 8) 1793 | -10/Materials | Identified exit to Materials 1829 | -10/Materials | Loaded intel: 12 trap records 1854 | -10/Materials | Learned location of 1 exit from Storage 1870 | -10/Materials | Learned Storage stockpile data 1884 | -10/Materials | Learned 4 Recycling zone layouts 2334 | -10/Materials | Repaired Particle Gun 2573 | -10/Materials | Prayed at D.C.S.S. Altar Unit 2592 | -10/Materials | Entered Subcaves 2593 | -10/Subcaves | Approached by a straggling Scientist 2593 | -10/Subcaves | Identified exit to Materials 2636 | -10/Subcaves | Sensors blinded by X0-1V1 2674 | -10/Subcaves | Utility slot count permanently improved by X0-1V1 (+1) 2680 | -10/Subcaves | Shifting Twisted Machinery released Sub. Optics 2762 | -10/Subcaves | Energy generation permanently improved by X0-1V1 (+10) 2849 | -10/Subcaves | Scientist uncovered a shortcut to Scraptown 3134 | -10/Subcaves | Learned location of 1 exit from Materials 3225 | -10/Subcaves | Found SUBCON Basin 3303 | -10/Subcaves | Core integrity permanently improved by X0-1V1 (+350) 3494 | -10/Subcaves | Learned Materials interactive machine intel 3762 | -10/Subcaves | System corruption reached 10% 4151 | -10/Subcaves | Shifting Twisted Machinery released Spk. Treads 4268 | -10/Subcaves | Build established: Scavenger-Mutant 4404 | -10/Subcaves | Visited Clippyterm 4409 | -10/Subcaves | Learned location of Deep Caves (-6) 4409 | -10/Subcaves | Learned Research machine intel 4445 | -10/Subcaves | Shifting Twisted Machinery released Sub. Power Source 4448 | -10/Subcaves | Shifting Twisted Machinery released Slug Cannon 4472 | -10/Subcaves | Disturbed a concealed Subdweller 4710 | -10/Subcaves | X0-1V1 sent hostile G-34 Mercenary (x4) 4728 | -10/Subcaves | Core integrity fell below 50% 4893 | -10/Subcaves | Build established: Mutant 5049 | -10/Subcaves | Learned 8 Materials zone layouts 5681 | -10/Subcaves | Discovered exit to Materials (range 6) 5715 | -10/Subcaves | Build established: Scavenger-Mutant 5718 | -10/Subcaves | Learned location of Zion (-6) 5718 | -10/Subcaves | Met a Zionite searching for "candidates" 5950 | -10/Subcaves | Identified exit to Recycling 5950 | -10/Subcaves | X0-1V1 revealed exit location to -8/Recycling 6021 | -10/Subcaves | X0-1V1 activates XOMVISION 6187 | -10/Subcaves | Visited 4L-MR0's lab 6216 | -10/Subcaves | Found Prototype Device 6222 | -10/Subcaves | Core integrity restored by X0-1V1 (+100) 6222 | -10/Subcaves | Found Prototype Power Core 6469 | -10/Subcaves | Build established: Mutant 6860 | -10/Subcaves | X0-1V1 sent hostile G-34 Mercenary (x4) 6896 | -10/Subcaves | X0-1V1 mutated your Propulsion slot to Utility slot 6958 | -10/Subcaves | Entered Scraptown 6958 | -8/Scraptown | System corruption cleaned by C-Scrubber 7238 | -8/Scraptown | Visited Supply Room 7280 | -8/Scraptown | Visited Junk Repository 7321 | -8/Scraptown | Visited Cyclists 7337 | -8/Scraptown | Visited Comm Corps 7383 | -8/Scraptown | Visited Junk Repository 7429 | -8/Scraptown | Visited TADAMA 7457 | -8/Scraptown | Visited Shadow of the Wyrm 7496 | -8/Scraptown | Visited UFD Registry 7496 | -8/Scraptown | Registered with UFD as "Ionrunner" 7574 | -8/Scraptown | Visited Research Penetration Think Tank 7673 | -8/Scraptown | Visited Botcube Research 7707 | -8/Scraptown | Visited Infowarlord's Domain 7728 | -8/Scraptown | Visited Science Testing Area 7758 | -8/Scraptown | Visited Derelict Rescue Squad 7813 | -8/Scraptown | Visited Abandonware Association 7843 | -8/Scraptown | Learned abandonware demo "HACKBUD.EXE" 7965 | -8/Scraptown | Delivered Scrap Shield to a Scientist 8001 | -8/Scraptown | Identified Sfc. Transmogrifier 8138 | -8/Scraptown | Visited Curators Association 8168 | -8/Scraptown | Visited DA-N13 Charitable Foundation 8177 | -8/Scraptown | Found DCF Scrap (29 items) 8346 | -8/Scraptown | Entered Cyclist Reading Room 8560 | -8/Scraptown | Discovered new exit (range 7) 8574 | -8/Scraptown | Identified exit to Factory 8576 | -8/Scraptown | Entered Factory 8576 | -6/Factory | Evolved 8 slots: Propulsion x4, Utility x3, Weapon x1 8956 | -6/Factory | Found Hvy. Reactive Plating 9024 | -6/Factory | X0-1V1 sent you to a vault 9059 | -6/Factory | Found Prototype Device 9059 | -6/Factory | Identified Adv. EM Shield 9061 | -6/Factory | Identified exit to Extension 9061 | -6/Factory | X0-1V1 revealed exit location to -6/Extension 9229 | -6/Factory | Discovered new exit (range 19) 9272 | -6/Factory | Build established: Tank 9287 | -6/Factory | X0-1V1 enhanced Transport squad support 9303 | -6/Factory | Released subatomizers from SUBCON Basin 9595 | -6/Factory | X0-1V1 added 0b10 threat records associated with you (major) 9615 | -6/Factory | Entered Extension 9648 | -6/Extension | X0-1V1 mutated your Weapon slot to Propulsion slot 9714 | -6/Extension | System corruption reached 10% 9818 | -6/Extension | X0-1V1 foreshadows a heat wave 9866 | -6/Extension | Rescued a captive Derelict 9932 | -6/Extension | Build established: Mutant 9999 | -6/Extension | Ambient heat levels rising (+10) 10031 | -6/Extension | Lost 3 parts (1n2u) 10032 | -6/Extension | X0-1V1 sent allied B-86 Titan (x1) 10062 | -6/Extension | Identified exit to Cetus 10062 | -6/Extension | X0-1V1 revealed exit location to -6/Cetus 10074 | -6/Extension | X0-1V1 activates XOMVISION 10098 | -6/Extension | Rescued a captive Derelict 10114 | -6/Extension | Ambient heat levels rising (+10) 10142 | -6/Extension | Rescued a captive Derelict 10266 | -6/Extension | Rescued a captive Derelict 10280 | -6/Extension | Ambient heat levels falling (-10) 10288 | -6/Extension | Rescued a captive Derelict 10421 | -6/Extension | Identified exit to Factory 10421 | -6/Extension | X0-1V1 revealed exit location to -5/Factory 10452 | -6/Extension | Ambient heat levels falling (-10) 10587 | -6/Extension | Disrupted transfer network 10631 | -6/Extension | Discovered exit to Factory (range 17) 10681 | -6/Extension | Found Scimitar of Distortion 10722 | -6/Extension | Entered Cetus 10744 | -6/Cetus | Spotted Cetus Guard 10745 | -6/Cetus | Spotted Cetus Guard 10745 | -6/Cetus | Spotted Cetus Guard 10748 | -6/Cetus | Spotted Cetus Guard 10752 | -6/Cetus | Destroyed Cetus Guard 10754 | -6/Cetus | Destroyed Cetus Guard 10755 | -6/Cetus | Destroyed Cetus Guard 10756 | -6/Cetus | Destroyed Cetus Guard 10887 | -6/Cetus | Cetus Manufacturing Module disabled 10909 | -6/Cetus | Discovered new exit (range 15) 10935 | -6/Cetus | Spotted Cetus Guard 10935 | -6/Cetus | Spotted Cetus Guard 10937 | -6/Cetus | Spotted Cetus Guard 10939 | -6/Cetus | Spotted Cetus Guard 10948 | -6/Cetus | Destroyed Cetus Guard 10950 | -6/Cetus | Destroyed Cetus Guard 10952 | -6/Cetus | Destroyed Cetus Guard 10953 | -6/Cetus | Destroyed Cetus Guard 10958 | -6/Cetus | Discovered exit to Factory (range 16) 10966 | -6/Cetus | Met Revision 17 11057 | -6/Cetus | Entered Archives 11235 | -6/Archives | Discovered new exit (range 15) 11270 | -6/Archives | Build established: Scavenger-Mutant 11280 | -6/Archives | X0-1V1 sent allied Y-54 Guardian (x2) 11344 | -6/Archives | Discovered new exit (range 16) 11392 | -6/Archives | Discovered exit to Factory (range 16) 11428 | -6/Archives | Entered Hub_04(d) 11428 | -6/Hub_04(d) | Accompanied by 2 allies 11465 | -6/Hub_04(d) | X0-1V1 destroyed Network Hub 11465 | -6/Hub_04(d) | Network Hub disabled 11528 | -6/Hub_04(d) | Spotted Lightning 11528 | -6/Hub_04(d) | Spotted Lightning 11530 | -6/Hub_04(d) | Network Hub disabled 11531 | -6/Hub_04(d) | Spotted Lightning 11556 | -6/Hub_04(d) | System corruption reached 30% 11573 | -6/Hub_04(d) | Destroyed Lightning 11579 | -6/Hub_04(d) | Destroyed Lightning 11630 | -6/Hub_04(d) | Destroyed Lightning 11645 | -6/Hub_04(d) | Found Prototype Processor 11645 | -6/Hub_04(d) | Identified Exp. Targeting Computer 11651 | -6/Hub_04(d) | Found Prototype Device 11651 | -6/Hub_04(d) | Identified Exp. EM Shield 11657 | -6/Hub_04(d) | Found Prototype Device 11657 | -6/Hub_04(d) | Identified Exp. Phase Shifter 11668 | -6/Hub_04(d) | Found Exp. EM Shield 11704 | -6/Hub_04(d) | Spotted Lightning 11704 | -6/Hub_04(d) | Spotted Lightning 11704 | -6/Hub_04(d) | Spotted Lightning 11766 | -6/Hub_04(d) | X0-1V1 sent allied P-60 Hacker (x2) 11777 | -6/Hub_04(d) | Destroyed Lightning 11777 | -6/Hub_04(d) | Destroyed Lightning 11786 | -6/Hub_04(d) | Lost 3 parts (1p1u1w) 11788 | -6/Hub_04(d) | Destroyed Lightning 11827 | -6/Hub_04(d) | X0-1V1 turns hostiles against one another 11852 | -6/Hub_04(d) | Lost 3 parts (1p2u) 11855 | -6/Hub_04(d) | Found Exp. Phase Shifter 11880 | -6/Hub_04(d) | X0-1V1 sent hostile S-27 Virus (x4) 11914 | -6/Hub_04(d) | Found Prototype Energy Cannon 11958 | -6/Hub_04(d) | Discovered exit to Factory (range 16) 12065 | -6/Hub_04(d) | Entered Factory 12065 | -5/Factory | Evolved 2 slots: Propulsion x1, Weapon x1 12202 | -5/Factory | Identified exit to Factory 12202 | -5/Factory | X0-1V1 revealed exit location to -4/Factory 12282 | -5/Factory | Fabricated Enh. Quantum Rifle? 12800 | -5/Factory | Identified EMDS 12893 | -5/Factory | X0-1V1 upgraded hostiles (x3) 12917 | -5/Factory | System corruption reached 10% 12922 | -5/Factory | Weapon slot count temporarily expanded by X0-1V1 (+3) 12954 | -5/Factory | Lost 5 parts (1p3u1w) 13006 | -5/Factory | X0-1V1 sent you to a vault 13011 | -5/Factory | Found Quantum Capacitor 13013 | -5/Factory | Found Prototype Device 13013 | -5/Factory | Identified Imp. Particle Accelerator 13093 | -5/Factory | Identified exit to Upper Caves 13093 | -5/Factory | X0-1V1 revealed exit location to -5/Upper Caves 13341 | -5/Factory | X0-1V1 downgraded hostiles (x1) 13350 | -5/Factory | Cargo convoy interrupted 13379 | -5/Factory | Build established: Scavenger-Gunner 13795 | -5/Factory | X0-1V1 activates XOMVISION 13851 | -5/Factory | Build established: Gunner 13980 | -5/Factory | Discovered exit to Factory (range 5) 13993 | -5/Factory | Entered another Factory area 13993 | -4/Factory | Evolved 2 slots: Power x1, Utility x1 14100 | -4/Factory | Identified exit to Research 14100 | -4/Factory | X0-1V1 revealed exit location to -3/Research 14382 | -4/Factory | Spotted B-86 Titan 14490 | -4/Factory | Identified exit to Upper Caves 14490 | -4/Factory | Identified exit to Armory 14535 | -4/Factory | X0-1V1 vaporized surrounding terrain (radius 15) 14535 | -4/Factory | Spotted B-86 Titan 14652 | -4/Factory | Entered Upper Caves 14654 | -4/Upper Caves | UFD Scientist delivered a prototype 14674 | -4/Upper Caves | Found Prototype Protection 14674 | -4/Upper Caves | Identified Enh. Scrap Shield 14704 | -4/Upper Caves | Encountered a Warlord checkpoint 15031 | -4/Upper Caves | X0-1V1 activates XOMVISION 15037 | -4/Upper Caves | Build established: Tank 15220 | -4/Upper Caves | Learned Research garrison access intel 15268 | -4/Upper Caves | Discovered new exit (range 13) 15369 | -4/Upper Caves | X0-1V1 activates XOMVISION 15539 | -4/Upper Caves | Entered another Upper Caves area 15887 | -4/Upper Caves | Discovered new exit (range 11) 15919 | -4/Upper Caves | Entered Zhirov 15919 | -4/Zhirov | Discovered new exit (range 3) 15953 | -4/Zhirov | Met Zhirov 15994 | -4/Zhirov | Found Alien Artifact 15994 | -4/Zhirov | Identified Integrated Dissipator 15994 | -4/Zhirov | Installed Integrated Dissipator, increased core heat dissipation (+20) 16020 | -4/Zhirov | Found Alien Artifact 16130 | -4/Zhirov | Learned location of Quarantine (-2) 16130 | -4/Zhirov | Learned location of Testing (-3) 16130 | -4/Zhirov | Learned location of Command (-1) 16149 | -4/Zhirov | Zhirov requested help retrieving the SGEMP Prototype 16199 | -4/Zhirov | Entered Proximity Caves 16199 | -3/Proximity Caves | Found Hvy. Scimitar of Distortion 16201 | -3/Proximity Caves | Spotter reported a threat 16202 | -3/Proximity Caves | Spotter reported a threat 16335 | -3/Proximity Caves | X0-1V1 activates XOMVISION 16472 | -3/Proximity Caves | Build established: Mutant 16641 | -3/Proximity Caves | Attracted the attention of an 0b10 checkpoint 16710 | -3/Proximity Caves | Discovered exit to Research (range 6) 16727 | -3/Proximity Caves | Entered Research 16727 | -3/Research | Evolved 2 slots: Utility x2 16728 | -3/Research | Loaded intel: 112 machine locations 16729 | -3/Research | Loaded intel: 4 garrison access locations 16851 | -3/Research | Discovered new exit (range 16) 16977 | -3/Research | Search patrols dispatched 17021 | -3/Research | Build established: Tank 17027 | -3/Research | Entered Testing 17035 | -3/Testing | Spotted PH-H3OD0RG9NF 17045 | -3/Testing | Destroyed PH-H3OD0RG9NF 17077 | -3/Testing | Identified exit to Research 17077 | -3/Testing | X0-1V1 revealed exit location to -2/Research 17191 | -3/Testing | Identified Meta Core 17193 | -3/Testing | Attached Meta Core, gained temporary slots: Propulsion, Utility, Weapon 17246 | -3/Testing | Found Thermal Barrier 17306 | -3/Testing | Entered Research 17306 | -2/Research | Evolved 1 slot: Utility x1 17578 | -2/Research | Garrison activated, responded to threat 17740 | -2/Research | Found Unknown Launcher 17740 | -2/Research | Identified Gamma Bomb Array 17895 | -2/Research | Lost 3 parts (1n2u) 17928 | -2/Research | Destroyed 7 combat bots 18015 | -2/Research | Found Gamma Bomb Array 18018 | -2/Research | Found Gamma Bomb Array 18020 | -2/Research | Found Gamma Bomb Array 18022 | -2/Research | Found Gamma Bomb Array 18128 | -2/Research | Spotted B-90 Cyclops 18145 | -2/Research | X0-1V1 whisked you away to safety 18266 | -2/Research | X0-1V1 sent allied Lightning (x1) 18360 | -2/Research | Destroyed Lightning 18410 | -2/Research | X0-1V1 redirected Transport squads to designated parking area 18412 | -2/Research | System corruption reached 10% 18414 | -2/Research | Adv. Hardlight Generator reconfigured into Item Mimic 18428 | -2/Research | Found Quantum Capacitor 18612 | -2/Research | Identified exit to Quarantine 18621 | -2/Research | Identified Transdimensional Reconstructor 18621 | -2/Research | Warped through subspace 18780 | -2/Research | Found Unknown Protection 18780 | -2/Research | Identified Hvy. Reflective Plating 18806 | -2/Research | First assault squad dispatched 18807 | -2/Research | Entered Quarantine 18899 | -2/Quarantine | Core integrity restored by X0-1V1 (+408) 18992 | -2/Quarantine | X0-1V1 sent you to a vault 19040 | -2/Quarantine | Build established: Scavenger-Tank 19057 | -2/Quarantine | First assault squad dispatched 19086 | -2/Quarantine | Found Alien Energy Cannon 19215 | -2/Quarantine | Identified exit to Protoforge 19215 | -2/Quarantine | X0-1V1 revealed exit location to -2/Protoforge 19223 | -2/Quarantine | Discovered new exit (range 8) 19235 | -2/Quarantine | Entered Access 19235 | -1/Access | Accompanied by 3 allies 19235 | -1/Access | Evolved 2 slots: Propulsion x1, Utility x1 19456 | -1/Access | Destroyed 11 combat bots 19563 | -1/Access | Spotted B-99 Colossus 19573 | -1/Access | X0-1V1 activates XOMVISION 19669 | -1/Access | X0-1V1 enhanced Transport squad support 19735 | -1/Access | First assault squad dispatched 19821 | -1/Access | Identified Core Cannon 19826 | -1/Access | Discovered new exit (range 10) 19838 | -1/Access | Entered Command 19884 | -1/Command | X0-1V1 sent you into danger 19903 | -1/Command | System corruption reached 10% 19933 | -1/Command | Spotted B-99 Colossus 19959 | -1/Command | Lost 8 parts (1p4n1u2w) 19962 | -1/Command | Core integrity fell below 50% 19973 | -1/Command | Core integrity fell below 20% 19976 | -1/Command | X0-1V1 downgraded hostiles (x10) 19994 | -1/Command | Destroyed by Improved Concussive RPG Last Messages --------------- 19981_ Slammed into C-35 Carver. 19988_ X0-1V1: "Fire in the hole!" 19988_ S-43 Plague destroyed. 19988_ C-35 Carver destroyed. 19988_ S-43 Plague destroyed. X0-1V1's Piety Tracker suddenly appears amidst shimmering waves of color. 19992_ K-01 Serf collects debris. 19992_ X0-1V1 sends you a sudden surge of matter. 19994_ S-27 Virus destroyed. 19994_ TF Node disabled. 19994_ Adv. Sensor Array tumbles out of TF Node. 19994_ Adv. Signal Interpreter tumbles out of TF Node. 19994_ C-35 Carver destroyed. 19994_ K-01 Serf destroyed. 19994_ S-27 Virus destroyed. 19994_ S-43 Plague destroyed. 19994_ X0-1V1 laughs nastily! Map ----- +----------------------------------------------------+ | ?????????????????????????????????????????????????? | | ?????????????????????????????????????????????????? | | ?????????????????????????????????????????????????? | | ?????????????????????????????????????????????????? | | ?????????????????????????????????????????????????? | | ?????????????????????????????????????????????????? | | ?????????????????????????????????????????????????? | | ?????????????????????????????????????????????????? | | ?????????????????????????????????????????????????? | | ?????????????????????????????????????????????????? | | ?????????????????????????????????????????????????? | | ?????????????????????????????????????????????????? | | ?????????????????????????????????????????????????? | | ?????????????????????????????????????????????????? | | ?????????????????????????????????????????????????? | | ?????????????????????????????????????????????????? | | ?????????????????????????????????????????????????? | | ?????????????????????????????????????????????????? | | ?????????????????????????????????????????????????? | | ?????????????????????????????????????????????????? | | ????????????????????????????#????????????????????? | | ??????????????????????????? #????????????????????? | | ??????????????????????????? +????????????????????? | | ??????????????????######?? #????????????????????? | | ??????????????????# !!### #######??????????????? | | ??????????????????#! @ ????????? | | ????????????#?????#= k ????????? | | ????????????# ????# s ##############???????????? | | ????????????# ??##%= ?????????????????????????? | | ????????????# ??#=s#????????####??????????????? | | ?????????#??+ ##%%#???? ?????????????? | | ?????????# ?# s # ?????????????? | | ????# ### ## ! "" ?????????????????? | | ????# = %%= # """??????????????????? | | ????# [ ss* + """??????????????????? | | ??????###+#### %%* ##? "???????????????????? | | ???????????? [= ##??? ?????????????????? | | ?????????? %## ?????? ????????????????? | | ???????? =####??????########???????????????? | | ???????# # #????????????????????????????????? | | ???????? # #????????????????????????????????? | | ???????? ?# #????????????????????????????????? | | ?????????###??# #????????????????????????????????? | | ??????????????# #????????????????????????????????? | | ??????????????# #????????????????????????????????? | | ??????????????# #????????????????????????????????? | | ??????????????# #????????????????????????????????? | | ??????????????# #????????????????????????????????? | | ??????????????# #????????????????????????????????? | | ??????????????# #????????????????????????????????? | +----------------------------------------------------+ Best States ------------- Heat Dissipation 178 Coolant Potential 100 Energy Generation 63 Energy Capacity 1990 Matter Stores 900 Matter Capacity 900 Sight Range 21 Robot Scan Range 18 Terrain Scan Range 30 Terrain Scan Density 410 ECM Strength 2 Jamming Range 12 Cloak Strength 2 Base Temperature (-) 150 EM Shielding 2 Armor Coverage 1200 Resistance: KI 40 Resistance: TH 50 Resistance: EM 75 Utility Shielding 66 Weapon Shielding 15 Weapon Cycling 20 Melee Speed Boost 50 Phase Shifting 20 Evasion (%) 75 Targeting Accuracy 12 Launcher Accuracy 60 Target Analysis 10 Core Analysis 6 Recoil Reduction 6 Kinecelleration 40 Offensive Hacking 14 Defensive Hacking 10 Item Schematics ----------------- Cld. Plasma Rifle | -5/Factory | Scanalyzed Assault Drone Bay | -4/Zhirov | Free Exp. Heat Sink | -4/Zhirov | Free Exp. Optical Array | -4/Zhirov | Free Imp. Arc Thrower | -4/Zhirov | Free Lrn. Phase Cannon | -2/Quarantine | Archive Adv. Matter Compressor | -2/Quarantine | Archive Imp. Q-thruster | -2/Quarantine | Archive Robot Schematics ------------------ H-88 Terminator | -2/Quarantine | Archive A-02 Transporter | -2/Quarantine | Archive Fabricated ------------ Enh. Quantum Rifle | x2 | -5/Factory | Preloaded Repaired ---------- Particle Gun | 8% | -10/Materials Studied --------- Arm. Huge Wheel | -6/Factory | Hacked Arm. Wheel | -6/Factory | Hacked Med. Armored Exoskeleton | -5/Factory | Hacked Thunder Leg | -5/Factory | Hacked Imp. Titanium Leg | -5/Factory | Hacked Alien Tech Used ----------------- Integrated Dissipator Transdimensional Reconstructor Core Cannon Achievements -------------- Left-hand Path Pestilence Challenges ------------ None Game ------ Seed ZipDerelictCoupler Manual? 0 Play Time 03:40:23 Cumulative 466.9 hours Start 2026.06.23 @ 14:05:39 End 2026.06.23 @ 21:30:30 Sessions 5 Manual Loads 0 Difficulty Rogue Special Mode None Game No. 125 Rogue 119 Adventurer 0 Explorer 6 Win Type - Total 34 Types 16/2/6/1/2/1/2/2/1/1 Lore% 92 Gallery% 79 Achievement% 80 Wizard Run 0 Options --------- Layout 1 ASCII 0 Keyboard 0 Movement Mouse Keybinds 0 Fullscreen 2 Font 24/Smallcaps Map View 50x35 Zoom Use 0% Tactical HUD 1 Map Filters NONE Filters NONE Steam 1 RUN: 6be82798-da4b-4da1-9527-372903970676